fUST/lending_fUST_20251213
["ID","MTS","AMOUNT","RATE_DAILY","PERIOD"]
[398394589,1765593033219,-500.0,0.0002411,5]
[398394590,1765593033229,-2000.0,0.00024117,3]
[398394591,1765593033239,-5000.0,0.00024118,2]
[398394592,1765593033249,-2000.0,0.00024119,3]
[398394593,1765593033260,-5338.90236596,0.0002414,2]
[398394594,1765593033272,-2000.0,0.00024141,2]
[398394595,1765593033282,-202852.72390271,0.00024142,2]
[398394606,1765593038199,-513.40499661,0.00020035,2]
[398394607,1765593038209,-557.51486348,0.00023899,2]
[398394608,1765593038219,-15.34413991,0.00024142,2]
[398394609,1765593038231,-22198.86499903,0.00024142,2]
[398394610,1765593038241,-21263.32,0.000242,2]
[398394611,1765593038250,-1030.4,0.000242,14]
[398394612,1765593038260,-22847.0136553,0.0002435,3]
[398394613,1765593038270,-500.0,0.00024384,5]
[398394614,1765593038279,-2600.0,0.00024416,7]
[398394615,1765593038297,-960.0,0.00024424,2]
[398394616,1765593038310,-45694.02,0.000245,3]
[398394617,1765593038320,-133703.6071038,0.0002465,2]
[398394618,1765593038330,-22732.02556137,0.0002465,2]
[398394619,1765593038340,-512.74765143,0.0002465,2]
[398394620,1765593038350,-500.0,0.00024658,5]
[398394621,1765593038360,-150.0,0.00024658,2]
[398394622,1765593038370,-200.0,0.00024658,2]
[398394623,1765593038380,-380.0,0.00024658,2]
[398394624,1765593038391,-308.0,0.00024673,120]
[398394625,1765593038402,-16307.53,0.000247,2]
[398394626,1765593038412,-171.0,0.00024734,120]
[398394627,1765593038422,-171.0,0.00024734,120]
[398394628,1765593038434,-162.0,0.00024736,120]
[398394629,1765593038445,-16786.58951703,0.00024774,2]
[398394630,1765593038455,-908.133012,0.00024774,7]
[398394631,1765593038464,-908.133012,0.00024774,7]
[398394632,1765593038474,-908.133012,0.00024774,7]
[398394633,1765593038483,-908.133012,0.00024774,7]
[398394634,1765593038494,-151.0,0.00024774,7]
[398394635,1765593038509,-151.0,0.00024774,7]
[398394636,1765593038519,-256.108787,0.00024774,7]
[398394637,1765593038531,-151.0,0.00024774,7]
[398394638,1765593038749,-151.0,0.00024774,7]
[398394639,1765593038759,-354.546917,0.00024774,7]
[398394640,1765593038770,-354.546917,0.00024774,7]
[398394641,1765593038779,-354.546917,0.00024774,7]
[398394642,1765593038789,-354.546917,0.00024774,7]
[398394643,1765593038799,-82304.87099854,0.00024788,7]
[398394644,1765593038809,-7281.65,0.000248,2]
[398394645,1765593038819,-908.133012,0.000248,7]
[398394646,1765593038828,-908.133012,0.000248,7]
[398394647,1765593038838,-908.133012,0.000248,7]
[398394648,1765593038849,-908.133012,0.000248,7]
[398394649,1765593038859,-151.0,0.000248,7]
[398394650,1765593038869,-151.0,0.000248,7]
[398394651,1765593038879,-311821.78033459,0.000248,2]
[398394652,1765593038892,-1500.0,0.000248,2]
[398394653,1765593038903,-3718.76438981,0.000248,2]
[398394654,1765593038915,-5956.4876015,0.000248,2]
[398394655,1765593038927,-3096.51262662,0.000248,2]
[398394656,1765593038939,-88742.24651448,0.000248,2]
[398394657,1765593038948,-184.892167,0.000248,7]
[398394658,1765593038957,-354.546917,0.000248,7]
[398394659,1765593038966,-354.546917,0.000248,7]
[398394660,1765593038976,-354.546917,0.000248,7]
[398394661,1765593038985,-354.546917,0.000248,7]
[398394662,1765593038995,-72362.33112586,0.000249,2]
[398394663,1765593039007,-1851.60034774,0.000249,2]
[398394664,1765593039016,-154.156563,0.000249,7]
[398394665,1765593039026,-500.0,0.00024932,5]
[398394666,1765593039035,-87137.67596767,0.00024932,30]
[398394710,1765593040029,-298.0,0.00021737,10]
[398394712,1765593040039,-506.0,0.0002465,10]
[398394714,1765593040049,-151.0,0.000248,7]
[398394716,1765593040058,-7862.32403233,0.00024932,30]
[398394718,1765593040068,-1060.0,0.00024972,2]
[398394720,1765593040078,-1194.878934,0.0002498,5]
[398394722,1765593040088,-1122.0,0.00025,5]
[398394724,1765593040097,-2298.0,0.00025,5]
[398394726,1765593040106,-1082.90485547,0.00025,2]
[398394728,1765593040116,-2668.29563171,0.00025,2]
[398394730,1765593040125,-10364.0,0.00025,2]
[398394732,1765593040134,-500.0,0.00025,2]
[398394734,1765593040143,-600.0,0.00025,2]
[398394737,1765593040154,-328.13831064,0.00025,2]
[398394739,1765593040163,-221.0,0.00025,3]
[398394741,1765593040173,-221.0,0.00025,3]
[398394743,1765593040182,-150.0,0.00025,2]
[398394745,1765593040191,-3451.53282453,0.00025,5]
[398394747,1765593040200,-1002.97912586,0.00025,5]
[398394749,1765593040210,-749.84136939,0.00025,2]
[398394751,1765593040221,-431.25,0.00025,5]
[398394753,1765593040230,-756.92915411,0.00025,2]
[398394755,1765593040239,-3754.0,0.00025,2]
[398394757,1765593040248,-962.0944603,0.00025,120]
[398394759,1765593040258,-1097.6275663,0.00025,120]
[398394761,1765593040267,-341.68516719,0.00025,2]
[398394763,1765593040277,-1000.0,0.00025,5]
[398394765,1765593040286,-207.343792,0.00025,2]
[398394767,1765593040295,-179.87408814,0.0002513,2]
[398394769,1765593040305,-578.07647623,0.000252,5]
[398394772,1765593040314,-500.0,0.00025205,5]
[398394775,1765593040325,-250.0,0.00025205,2]
[398394778,1765593040334,-415.0,0.00025395,2]
[398394780,1765593040343,-900.0,0.00025469,3]
[398394782,1765593040353,-500.0,0.00025479,5]
[398394784,1765593040362,-1000.0,0.000255,2]
[398394786,1765593040371,-22847.01,0.000255,3]
[398394788,1765593040380,-2600.0,0.00025512,7]
[398394790,1765593040389,-1160.0,0.00025519,2]
[398394792,1765593040398,-151.0,0.0002556,7]
[398394794,1765593040407,-839.00113148,0.0002556,30]
[398394796,1765593040416,-350.0,0.00025753,2]
[398394797,1765593040426,-21263.32,0.000258,2]
[398394798,1765593040435,-1030.4,0.000258,14]
[398394799,1765593040445,-200.0,0.000258,7]
[398394800,1765593040455,-200.0,0.000258,7]
[398394801,1765593040464,-200.0,0.000258,7]
[398394802,1765593040474,-200.0,0.000258,7]
[398394803,1765593040483,-200.0,0.000258,7]
[398394804,1765593040492,-200.0,0.000258,7]
[398394805,1765593040502,-908.133012,0.000258,7]
[398394806,1765593040511,-908.133012,0.000258,7]
[398394807,1765593040520,-908.133012,0.000258,7]
[398394808,1765593040529,-908.133012,0.000258,7]
[398394809,1765593040539,-219.749859,0.000258,7]
[398394810,1765593040552,-151.0,0.000258,7]
[398394811,1765593040561,-354.546917,0.000258,7]
[398394812,1765593040570,-354.546917,0.000258,7]
[398394813,1765593040580,-354.546917,0.000258,7]
[398394814,1765593040591,-354.546917,0.000258,7]
[398394816,1765593040604,-16307.53,0.000258,2]
[398394818,1765593040613,-528.51035699,0.00026,2]
[398394820,1765593040622,-19900.0,0.00026,2]
[398394821,1765593040633,-161.0,0.00026,5]
[398394822,1765593040643,-1000.0,0.00026,26]
[398394823,1765593040652,-729.75188597,0.00026,120]
[398394824,1765593040662,-165.0,0.00026,7]
[398394825,1765593040672,-1260.0,0.00026067,2]
[398394826,1765593040682,-194.10979226,0.0002616,2]
[398394828,1765593040692,-450.0,0.00026301,2]
[398394830,1765593040702,-165.4241396,0.00026301,2]
[398394831,1765593040711,-152.80826087,0.00026448,30]
[398394832,1765593040721,-278.92619516,0.00026586,30]
[398394833,1765593040731,-1360.0,0.00026615,2]
[398394834,1765593040740,-1100.531742,0.00026676,2]
[398394835,1765593040750,-4437.10329894,0.00026718,2]
[398394836,1765593040762,-562.89670106,0.00026718,2]
[398394837,1765593040772,-550.0,0.00026849,2]
[398394838,1765593040782,-200.0,0.00027052,30]
[398394839,1765593040791,-200.0,0.00027052,30]
[398394840,1765593040800,-500.0,0.000271,7]
[398394841,1765593040810,-1460.0,0.00027163,2]
[398394842,1765593040820,-165.0,0.00027185,7]
[398394843,1765593040829,-65.58676347,0.000272,2]
[398394844,1765593040841,-21197.73323653,0.000272,2]
[398394845,1765593040851,-163.0,0.00027288,24]
[398394846,1765593040860,-16307.53,0.000273,2]
[398394847,1765593040869,-150.0,0.0002739,2]
[398394848,1765593040878,-400.0,0.0002739,2]
[398394849,1765593040888,-150.0,0.00027397,2]
[398394850,1765593040897,-150.0,0.00027397,2]
[398394851,1765593040906,-223.42330692,0.00027397,2]
[398394852,1765593040916,-650.0,0.00027397,5]
[398394853,1765593040926,-246.577841,0.00027397,7]
[398394854,1765593040935,-246.577841,0.00027397,7]
[398394855,1765593040944,-246.577841,0.00027397,7]
[398394856,1765593040954,-246.577841,0.00027397,7]
[398394857,1765593040963,-246.577841,0.00027397,7]
[398394858,1765593040973,-246.577841,0.00027397,7]
[398394859,1765593040983,-246.577841,0.00027397,7]
[398394860,1765593040992,-246.577841,0.00027397,7]
[398394861,1765593041001,-246.577841,0.00027397,7]
[398394862,1765593041011,-246.577841,0.00027397,7]
[398394863,1765593041020,-246.577841,0.00027397,7]
[398394864,1765593041030,-246.577841,0.00027397,7]
[398394865,1765593041040,-500.0,0.00027397,5]
[398394866,1765593041049,-150.0,0.00027397,5]
[398394867,1765593041059,-150.0,0.00027397,5]
[398394868,1765593041068,-11386.80074854,0.000275,2]
[398394869,1765593041118,246.30235237,0.00012563,2]
[398394983,1765593045774,-246.30235237,0.00015094,2]
[398394985,1765593045783,-270.47411432,0.00015581,2]
[398394986,1765593045794,-246.30235237,0.00017624,2]
[398394987,1765593045803,-246.30235237,0.00020154,2]
[398394988,1765593045813,-246.54865472,0.00022685,2]
[398394989,1765593045823,-13925.59588894,0.000275,2]
[398394990,1765593045836,-2210.91946395,0.000275,2]
[398394991,1765593045847,-6221.38066212,0.000275,2]
[398394992,1765593046848,-708.95109972,0.000275,2]
[398394993,1765593052130,492.76089333,0.00012563,2]
[398394994,1765593053177,221.01326225,9.107e-05,2]
[398394995,1765593089793,394.32695363,0.00012563,2]
[398394996,1765593094947,150.0,6.965e-05,2]
[398394997,1765593095334,150.0,7.297e-05,2]
[398394998,1765593095733,150.0,7.628e-05,2]
[398394999,1765593096132,174.03,7.96e-05,2]
[398395000,1765593096536,217.54,8.292e-05,2]
[398395001,1765593096920,261.05,8.623e-05,2]
[398395002,1765593097348,304.56,8.955e-05,2]
[398395003,1765593097718,348.06,9.286e-05,2]
[398395004,1765593098136,391.57,9.618e-05,2]
[398395005,1765593098545,435.08,9.95e-05,2]
[398395012,1765593166446,150.0,7.041e-05,2]
[398395013,1765593167098,150.0,7.377e-05,2]
[398395014,1765593167260,150.0,7.712e-05,2]
[398395015,1765593167664,150.0,8.047e-05,2]
[398395016,1765593168068,150.0,8.382e-05,2]
[398395017,1765593168767,152.26,8.718e-05,2]
[398395018,1765593169378,177.64,9.053e-05,2]
[398395019,1765593169594,203.02,9.388e-05,2]
[398395020,1765593170010,228.39,9.724e-05,2]
[398395021,1765593170427,253.77,0.00010059,2]
[398395022,1765593234684,150.0,7.094e-05,2]
[398395023,1765593235117,150.0,7.432e-05,2]
[398395024,1765593235510,150.0,7.77e-05,2]
[398395025,1765593235931,150.0,8.107e-05,2]
[398395026,1765593236351,150.0,8.445e-05,2]
[398395027,1765593636606,-394.32695363,0.00016897,2]
[398395028,1765593636635,-667.0,0.00016897,2]
[398395030,1765593682756,150.0,7.05e-05,2]
[398395036,1765593963720,500.0,0.00013273,2]
[398395037,1765593963778,1500.0,0.00014368,2]
[398395038,1765593963829,2000.0,0.00014916,2]
[398395039,1765593969910,1000.0,0.00013821,2]
[398395040,1765593970602,-487.23198141,0.00015464,2]
[398395041,1765594002031,150.0,7.089e-05,2]
[398395042,1765594002606,150.0,7.427e-05,2]
[398395043,1765594002865,150.0,7.764e-05,2]
[398395044,1765594003286,150.0,8.102e-05,2]
[398395045,1765594003684,150.0,8.439e-05,2]
[398395046,1765594004204,154.68,8.777e-05,2]
[398395047,1765594004735,180.46,9.115e-05,2]
[398395048,1765594005129,206.24,9.452e-05,2]
[398395049,1765594005525,232.02,9.79e-05,2]
[398395051,1765594005936,257.8,0.00010127,2]
[398395053,1765594071117,150.0,7.036e-05,2]
[398395054,1765594071525,150.0,7.371e-05,2]
[398395055,1765594071911,150.0,7.706e-05,2]
[398395056,1765594072348,150.0,8.041e-05,2]
[398395057,1765594103042,221.12371366,9.277e-05,2]
[398395080,1765594231875,-282.34546992,0.00015464,2]
[398395082,1765594231887,-1730.42254867,0.00015464,2]
[398395084,1765594231896,-273.0,0.00015738,2]
[398395086,1765594231905,-2500.0,0.00016012,2]
[398395088,1765594231915,-170.0,0.00017808,4]
[398395090,1765594231923,-500.0,0.00018536,2]
[398395092,1765594231932,-500.0,0.00018536,3]
[398395094,1765594231941,-500.0,0.00018536,4]
[398395096,1765594231950,-500.0,0.00018536,5]
[398395098,1765594231959,-500.0,0.00018536,6]
[398395099,1765594231968,-621.75145908,0.00018536,7]
[398395100,1765594231978,-190.0,0.00018575,3]
[398395102,1765594231987,-366.1041,0.00019,2]
[398395104,1765594231996,-250.0,0.00019737,2]
[398395105,1765594232006,-160.0,0.00020394,3]
[398395107,1765594232016,-160.0,0.00020841,4]
[398395109,1765594232025,-300.0,0.00020864,2]
[398395111,1765594232034,-632.86,0.00020865,2]
[398395113,1765594232043,-2161.647,0.00020865,2]
[398395114,1765594232052,-1363.398,0.00020865,2]
[398395115,1765594232061,-415.0,0.00020865,2]
[398395117,1765594232070,-160.0,0.00021086,2]
[398395119,1765594232080,-394.32695363,0.00021232,2]
[398395121,1765594232089,-160.0,0.00021287,5]
[398395122,1765594232098,-221.34483737,0.00021316,2]
[398395124,1765594232107,-260.0,0.00021634,2]
[398395126,1765594232116,-160.0,0.00021733,6]
[398395128,1765594232125,-463.0,0.0002189,10]
[398395130,1765594232134,-891.5,0.0002189,10]
[398395132,1765594232143,-160.0,0.00022179,7]
[398395134,1765594232152,-360.0,0.00022182,2]
[398395136,1765594232161,-160.0,0.00022625,8]
[398395138,1765594232171,-460.0,0.0002273,2]
[398395139,1765594232180,-500.0,0.00022804,2]
[398395141,1765594232189,-500.0,0.00022804,2]
[398395143,1765594232199,-5000.0,0.00022818,2]
[398395144,1765594232208,-164.0,0.00022959,8]
[398395147,1765594232218,-160.0,0.00023071,9]
[398395148,1765594232227,-197.82580954,0.00023071,5]
[398395150,1765594232236,-560.0,0.00023277,2]
[398395152,1765594232245,-213.512,0.00023346,3]
[398395154,1765594232254,-660.0,0.00023825,2]
[398395156,1765594232264,-415.0,0.00023865,2]
[398395158,1765594232273,-760.0,0.00024373,2]
[398395160,1765594232283,-150.0,0.00024658,2]
[398395162,1765594232292,-860.0,0.00024921,2]
[398395164,1765594232301,-250.0,0.00025205,2]
[398395166,1765594232310,-960.0,0.00025469,2]
[398395168,1765594232319,-394.32695363,0.00025566,2]
[398395170,1765594232328,-179.87408814,0.00025667,2]
[398395172,1765594232337,-350.0,0.00025753,2]
[398395174,1765594232347,-1600.0,0.00025856,7]
[398395176,1765594232356,-326.0,0.00026,120]
[398395178,1765594232365,-871.5942495,0.00026017,2]
[398395180,1765594232374,-450.0,0.00026301,2]
[398395182,1765594232383,-550.0,0.00026849,2]
[398395184,1765594232391,-301.699,0.00026865,2]
[398395185,1765594232401,-1271.08113671,0.000269,2]
[398395187,1765594232410,-1600.0,0.00026952,7]
[398395189,1765594232419,-166.0,0.00027,7]
[398395191,1765594232428,-160.0,0.00027276,5]
[398395193,1765594232438,-150.0,0.00027397,2]
[398395195,1765594232447,-150.0,0.00027397,2]
[398395197,1765594232456,-650.0,0.00027397,5]
[398395199,1765594232466,-500.0,0.00027397,5]
[398395201,1765594232476,-150.0,0.00027397,5]
[398395203,1765594232484,-150.0,0.00027397,5]
[398395205,1765594232493,-300.0,0.000274,120]
[398395207,1765594232503,-504.00759206,0.00027499,2]
[398395209,1765594232512,-500.0,0.00027499,2]
[398395211,1765594232521,-500.0,0.00027499,2]
[398395213,1765594232530,-2000.0,0.00027499,2]
[398395214,1765594232540,-11386.23721138,0.000275,2]
[398395216,1765594232549,-150.0,0.00027534,2]
[398395218,1765594232559,-150.0,0.00027534,2]
[398395220,1765594232567,-9791.61,0.0002759,3]
[398395222,1765594232577,-29374.71,0.000276,3]
[398395224,1765594232587,-168.52171863,0.00027634,30]
[398395226,1765594232596,-159.69128901,0.00027634,30]
[398395228,1765594232605,-174.97617406,0.00027634,30]
[398395230,1765594232615,-156.39631484,0.0002767,2]
[398395232,1765594232624,-558.68879075,0.0002767,2]
[398395234,1765594232633,-243.63440882,0.00027671,2]
[398395236,1765594232642,-197.67368956,0.00027671,2]
[398395238,1765594232651,-9791.57,0.000277,3]
[398395240,1765594232660,-1000.0,0.00027777,5]
[398395242,1765594232669,-37986.53531781,0.00027842,2]
[398395244,1765594232686,-17294.66422918,0.00027842,2]
[398395247,1765594232698,-1027.6,0.00027842,2]
[398395273,1765594237913,-425.0,0.00027842,10]
[398395274,1765594237923,-175.0,0.00027842,2]
[398395276,1765594237934,-541.086,0.00027842,2]
[398395279,1765594237966,-30604.64123361,0.00027842,2]
[398395281,1765594237976,-20000.0,0.00027873,3]
[398395282,1765594237986,-10937.03,0.0002788,10]
[398395283,1765594237997,-5208.17423796,0.0002789,2]
[398395284,1765594238008,-346908.97238749,0.0002789,2]
[398395285,1765594238019,-4542.958772,0.0002789,2]
[398395286,1765594238030,-7835.69838531,0.0002789,2]
[398395287,1765594238042,-13920.66988819,0.0002789,2]
[398395288,1765594238053,-10882.47014706,0.0002789,2]
[398395289,1765594238065,-3820.85755872,0.0002789,2]
[398395290,1765594238077,-2193.4165003,0.0002789,2]
[398395315,1765594240223,-430.55025904,0.00027842,10]
[398395316,1765594240235,-630.44974096,0.00027842,10]
[398395317,1765594240245,-7163.6106383,0.0002789,2]
[398395318,1765594240275,-4576.01192515,0.0002789,2]
[398395346,1765594243059,-156.0,0.00018685,3]
[398395347,1765594243068,-162.0,0.00026356,20]
[398395348,1765594243078,-17922.0,0.0002789,2]
[398395349,1765594243163,-900.01,0.0002789,2]
[398395350,1765594243174,-13631.80109592,0.0002789,2]
[398395351,1765594243186,-310.63394214,0.0002789,2]
[398395352,1765594246459,-6021.99999998,0.0002789,2]
[398395353,1765594246471,-641.0,0.0002789,2]
[398395400,1765594287860,198.05026906,0.00012563,2]
[398395401,1765594327705,150.0,8.793e-05,2]
[398395402,1765594328132,150.0,9.212e-05,2]
[398395403,1765594361150,263.25670739,0.00012563,2]
[398395404,1765594361176,187.65989019,9.277e-05,2]
[398395405,1765594369106,526.61818374,0.00012563,2]
[398395406,1765594369174,225.15754672,9.277e-05,2]
[398395407,1765594369846,225.15754672,0.00014818,2]
[398395408,1765594392049,150.0,7.177e-05,2]
[398395409,1765594392463,150.0,7.519e-05,2]
[398395410,1765594392882,150.0,7.86e-05,2]
[398395411,1765594393264,150.0,8.202e-05,2]
[398395412,1765594393672,150.0,8.544e-05,2]
[398395413,1765594458454,150.0,7.317e-05,2]
[398395414,1765594458868,150.0,7.665e-05,2]
[398395415,1765594804628,946.76633968,0.00013398,2]
[398395418,1765595194205,797.88981327,0.00012563,2]
[398395419,1765595195114,-313.72046547,0.00016118,2]
[398395420,1765595228083,-311.448567,0.00016118,2]
[398395421,1765595242088,-343.87987237,0.00015957,2]
[398395422,1765595242108,-172.7207808,0.00016118,2]
[398395423,1765595242128,-150.0,0.000167,2]
[398395424,1765595242147,-650.35927714,0.00017457,2]
[398395425,1765595292388,935.45198,0.00013699,2]
[398395427,1765595304328,210.21396633,9.277e-05,2]
[398395428,1765595304987,210.21396633,0.00013392,2]
[398395473,1765595432119,-644.6593538,0.00017457,2]
[398395559,1765595438364,-31.3406462,0.00017457,2]
[398395560,1765595438374,-210.21396633,0.00017507,2]
[398395561,1765595438384,-177.0,0.000187,2]
[398395562,1765595438394,-121.16938747,0.00019672,2]
[398395563,1765595438405,-676.7204258,0.00019672,2]
[398395564,1765595438414,-935.45198,0.00020187,2]
[398395565,1765595438424,-658.3593426,0.00020379,2]
[398395566,1765595438434,-231.0,0.000207,2]
[398395567,1765595438443,-150.0,0.00021,2]
[398395568,1765595438453,-210.21396633,0.00021622,2]
[398395569,1765595438462,-902.0,0.00022147,10]
[398395570,1765595438471,-300.0,0.00022379,2]
[398395571,1765595438481,-300.0,0.00022379,2]
[398395572,1765595438491,-153.42265813,0.00022379,2]
[398395573,1765595438502,-146.57734187,0.00022379,2]
[398395574,1765595438511,-300.0,0.00022379,2]
[398395575,1765595438520,-1200.0,0.00022379,2]
[398395576,1765595438529,-741.25048325,0.0002238,2]
[398395577,1765595438540,-458.74951675,0.0002238,2]
[398395578,1765595438550,-300.0,0.0002238,2]
[398395579,1765595438559,-1688.64648325,0.0002238,2]
[398395589,1765595440407,-48311.35351675,0.0002238,2]
[398395590,1765595440418,-451.0,0.0002238,10]
[398395591,1765595440427,-296.43468146,0.00022381,2]
[398395592,1765595440437,-500.0,0.00022381,2]
[398395593,1765595440449,-500.0,0.00022381,2]
[398395594,1765595440459,-405.71715857,0.00022381,2]
[398395595,1765595440469,-500.0,0.00022381,2]
[398395596,1765595440479,-500.0,0.00022381,2]
[398395597,1765595440490,-500.0,0.00022381,2]
[398395598,1765595440501,-500.0,0.00022381,2]
[398395599,1765595440511,-500.0,0.00022381,2]
[398395600,1765595440521,-635.85537936,0.00022381,2]
[398395601,1765595440531,-500.0,0.00022381,2]
[398395602,1765595440541,-500.0,0.00022381,2]
[398395603,1765595440551,-500.0,0.00022381,2]
[398395604,1765595440562,-500.0,0.00022381,2]
[398395605,1765595440572,-500.0,0.00022381,2]
[398395606,1765595440582,-500.0,0.00022381,2]
[398395607,1765595440592,-500.0,0.00022381,2]
[398395608,1765595440602,-500.0,0.00022381,2]
[398395609,1765595440612,-500.0,0.00022381,2]
[398395610,1765595440622,-500.0,0.00022381,2]
[398395611,1765595440632,-500.0,0.00022381,2]
[398395612,1765595440642,-500.0,0.00022381,2]
[398395613,1765595440651,-500.0,0.00022381,2]
[398395614,1765595440660,-589.28643507,0.00022381,2]
[398395615,1765595440669,-500.0,0.00022381,2]
[398395616,1765595440679,-500.0,0.00022381,2]
[398395617,1765595440688,-500.0,0.00022381,2]
[398395618,1765595440698,-410.02710619,0.00022381,2]
[398395619,1765595440708,-500.0,0.00022381,2]
[398395620,1765595440717,-392.86435075,0.00022381,2]
[398395621,1765595440726,-500.0,0.00022381,2]
[398395622,1765595440736,-348.82985822,0.00023066,2]
[398395623,1765595440745,-797.88981327,0.00023226,2]
[398395624,1765595440755,-420.0,0.00024309,2]
[398395625,1765595440764,-420.0,0.00024309,2]
[398395626,1765595440773,-420.0,0.00024309,2]
[398395627,1765595440783,-420.0,0.00024309,2]
[398395628,1765595440792,-1680.0,0.0002431,2]
[398395629,1765595440802,-1680.0,0.00024423,2]
[398395630,1765595440811,-170.81,0.00024657,7]
[398395631,1765595440821,-150.0,0.00024658,2]
[398395632,1765595440830,-380.0,0.00024658,2]
[398395633,1765595440840,-250.0,0.00025205,2]
[398395634,1765595440849,-179.89206476,0.00025729,2]
[398395635,1765595440859,-210.4241803,0.00025737,2]
[398395636,1765595440869,-350.0,0.00025753,2]
[398395637,1765595440878,-1300.0,0.00026246,7]
[398395638,1765595440888,-450.0,0.00026301,2]
[398395639,1765595440897,-587.0,0.00026406,2]
[398395640,1765595440907,-301.0,0.00026406,2]
[398395641,1765595440916,-1684.0,0.00026407,2]
[398395642,1765595440926,-935.45198,0.00026676,2]
[398395643,1765595440936,-798.68770309,0.00026781,2]
[398395644,1765595440945,-550.0,0.00026849,2]
[398395645,1765595440955,-167.0,0.00027,7]
[398395646,1765595440965,-508.98202394,0.00027169,2]
[398395647,1765595440974,-9114.19,0.0002717,10]
[398395648,1765595440984,-41561.04137877,0.0002718,2]
[398395649,1765595440995,-3375.19376899,0.0002718,2]
[398395650,1765595441011,-366.39040813,0.0002718,2]
[398395671,1765595443259,-435.015,0.0002717,10]
[398395682,1765595737388,150.0,7.353e-05,2]
[398395683,1765595737896,150.0,7.703e-05,2]
[398395684,1765595738309,150.0,8.054e-05,2]
[398395685,1765595738701,150.0,8.404e-05,2]
[398395686,1765595739105,150.0,8.754e-05,2]
[398395687,1765595739492,150.0,9.104e-05,2]
[398395688,1765595739920,150.0,9.454e-05,2]
[398395689,1765595740319,150.0,9.804e-05,2]
[398395690,1765595740720,155.58,0.00010154,2]
[398395691,1765596081623,294.21776041,0.00012563,2]
[398395692,1765596081688,211.58014558,9.277e-05,2]
[398395693,1765596122867,246.54,6.982e-05,2]
[398395694,1765596123297,493.07,7.314e-05,2]
[398395695,1765596123712,739.61,7.647e-05,2]
[398395696,1765596124132,986.15,7.979e-05,2]
[398395697,1765596124538,1232.68,8.312e-05,2]
[398395698,1765596124954,1479.22,8.644e-05,2]
[398395699,1765596125378,1725.76,8.977e-05,2]
[398395700,1765596125783,1972.29,9.309e-05,2]
[398395701,1765596126188,2218.83,9.642e-05,2]
[398395702,1765596126608,2465.37,9.974e-05,2]
[398395703,1765596203033,150.0,6.998e-05,2]
[398395704,1765596203479,150.0,7.332e-05,2]
[398395705,1765596203910,221.88,7.665e-05,2]
[398395706,1765596204325,295.84,7.998e-05,2]
[398395707,1765596204764,369.8,8.331e-05,2]
[398395708,1765596205179,443.77,8.665e-05,2]
[398395709,1765596205594,517.73,8.998e-05,2]
[398395710,1765596205988,591.69,9.331e-05,2]
[398395711,1765596206862,665.65,9.664e-05,2]
[398395712,1765596207280,739.61,9.998e-05,2]
[398395714,1765596278595,150.0,6.877e-05,2]
[398395715,1765596279457,150.0,7.204e-05,2]
[398395716,1765596279866,150.0,7.531e-05,2]
[398395717,1765596280251,150.0,7.859e-05,2]
[398395718,1765596280663,150.0,8.186e-05,2]